{"text_format":"1","workbook":"xlsx","n_sheets":4,"sheets":["Saisie","Calculs","Table_étiquettes","Graphiques-articles"],"not_rendered":{"charts":0,"images":3,"macros":0,"external_links":0,"defined_names":63,"comments":0,"pivot_tables":0},"unopened":[],"bounds":{"document_bytes":16777216,"sheet_cells":100000,"rows_first":2000,"rows_last":500,"rows_between":2000,"halvings":0,"cell_chars":16384,"cell_head_chars":4096},"cells_cut":0,"cells_raw":0,"read":"whole","date_system":"1900"}

{"sheet":"Saisie","index":0,"n_rows":50,"n_cols":3,"rows_kept":50,"cut":false,"hidden":false,"merged":[[46,1,46,2],[3,1,3,2],[45,1,45,2],[44,1,44,2]]}
[]
[null,{"$f":"étiquette_1","v":"Choisir la langue/Select language"},"Français"]
[]
[null,{"$f":"étiquette_2","v":"Calcul de l'impact économique annuel de la leucose sur le troupeau"}]
[]
[null,{"$f":"étiquette_3","v":"Identification du troupeau:"}]
[null,{"$f":"étiquette_4","v":"Date "},{"$f":"TODAY()","v":"2021-12-17"}]
[null,{"$f":"étiquette_6","v":"Production biologique certifiée"},"non"]
[]
[null,{"$f":"étiquette_11","v":"Sélectionnez la prévalence estimée telle qu'indiquée sur votre rapport"}]
[]
[null,{"$f":"étiquette_24","v":"Si vous êtes un utilisateur du contrôle laitier, complétez la section A sinon remplir la section B"}]
[]
[null,{"$f":"étiquette_28","v":"A.  Données du  troupeau selon le rapport Production-Sommaire du troupeau de Lactanet"}]
[null,{"$f":"étiquette_5","v":"Nombre  de vaches du troupeau - moyenne 12 derniers mois  (1)"}]
[null,{"$f":"étiquette_8","v":"Production annuelle moyenne                                                 kg/va"}]
[null,{"$f":"étiquette_25","v":"Taux de matière grasse - moyenne 12 mois (3 )                      %"}]
[null,{"$f":"étiquette_26","v":"Taux de protéine - moyenne 12 mois (3)                         %"}]
[]
[null,{"$f":"étiquette_29","v":"B.  Données du troupeau compilées sur la ferme + livraisons tirées du si Extranet des PLQ"}]
[null,{"$f":"étiquette_27","v":"Nombre  de vaches du troupeau - logiciel de gestion du troupeau - moyenne 12 derniers mois(1)"}]
[null,{"$f":"étiquette_22","v":"Livraisons  de lait - total des 12 derniers mois                          litre"}]
[null,{"$f":"étiquette_9","v":"Taux de matière grasse - moyenne 12 mois (3 )                      kg/hl"}]
[null,{"$f":"étiquette_10","v":"Taux de protéine vraie - moyenne 12 mois (3)                         kg/hl   "}]
[null,{"$f":"étiquette_23","v":"Taux de Lactose et autres solides - moyenne 12 mois (3)       kg/hl   "}]
[]
[]
[null,{"$f":"étiquette_24","v":"Si vous êtes un utilisateur du contrôle laitier, complétez la section A sinon remplir la section B"},{"$f":"IF(OR(C16=\"\",C16=0),IF(C21=0,0,C22*1.03/C21),C16)","v":0}]
[]
[]
[null,{"$f":"étiquette_12","v":"Sélectionnez la prévalence minimale estimée telle qu'indiquée sur votre rapport"},36]
[null,{"$f":"étiquette_12.5","v":"Sélectionnez la prévalence maximale estimée telle qu'indiquée sur votre rapport"},72]
[]
[]
[null,{"$f":"étiquette_13","v":"   Selon les informations fournies, vos pertes économiques se situent aux niveaux suivants:"}]
[]
[null,null,"$/année"]
[null,"   Valeur des pertes de production de lait",{"$f":"Calculs!F15","v":0}]
[null,"   Coûts de la réforme supplémentaire pour le troupeau",{"$f":"Calculs!F16","v":0}]
[null,{"$f":"étiquette_16","v":"   Perte moyenne estimée pour le troupeau"},{"$f":"IF(Calculs!B35=0,\"\",ROUND(Calculs!K42,-1))","v":""}]
[null,{"$f":"étiquette_16b","v":"   Perte minimale estimée "},{"$f":"Calculs!K43","v":{"$error":"#DIV/0!"}}]
[null,{"$f":"étiquette_16c","v":"   Perte maximale estimée"},{"$f":"Calculs!K44","v":{"$error":"#DIV/0!"}}]
[]
[]
[null,{"$f":"étiquette_17","v":"(1)  Inclure les vaches taries pour avoir une estimation correcte des pertes sur une base annuelle"}]
[null,{"$f":"étiquette_18","v":"(2)  L'étude sur laquelle s'appuient les calculs se réfère à la production moyenne des vaches calculée à 305 jours de lactation.  Le résultat du calcul des pertes sera légèrement différent si vous utilisez une moyenne annuelle."}]
[null,{"$f":"étiquette_19","v":"(3) Ces taux sont exprimés en kg/hl tels qu'on les retrouvent sur la paie de lait"}]
[]
[]
[null,"Mise à jour, 26 novembre 2021"]

{"sheet":"Calculs","index":1,"n_rows":44,"n_cols":21,"rows_kept":44,"cut":false,"hidden":true,"merged":[[31,2,31,10],[1,7,1,15],[1,4,1,6],[0,26,0,33],[1,26,1,30]]}
[null,null,null,null,1,2,3,4,5,6,7,8,9,10,11,12]
["date test",{"$f":"Saisie!C7","v":"2021-12-17"},null,null,"Prevalence",null,null,"Tableau de calcul des pertes du troupeau"]
["nb de vaches",{"$f":"Saisie!C15","v":0},null,"Elisa_Valeur ajustée",null,"Minimum associé","Maximum associé","Fat","Protein","LOS","Organic","Deduction","Loss for Prod / Cow","Replacement cost per Cow","Total per Cow","Total Loss for Herd"]
["bio",{"$f":"Saisie!C8","v":"non"},null,0,0,0,10,{"$f":"ROUND(facteur_gras*E4,4)*gras_produit*prix_mg","v":0},{"$f":"ROUND(facteur_protéine*E4,4)*proteine_produite*prix_prot","v":0},{"$f":"ROUND(facteur_LAS*E4,4)*Lait_produit*(taux_LAS/100)*prix_LAS","v":0},{"$f":"IF(OR(Bio=\"oui\",Bio=\"Yes\"),ROUND(facteur_lait*E4,4)*Lait_produit*(prime_bio/103.4),0)","v":0},{"$f":"ROUND(-facteur_lait*E4,4)*Lait_produit*deductions","v":0},{"$f":"H4+I4+J4+K4+L4","v":0},{"$f":"E4*facteur_remplacement","v":0},{"$f":"M4+N4","v":0},{"$f":"nb_vaches*O4","v":0}]
["lait/va",{"$f":"Saisie!C16+IF(Saisie!C28=\"\",0,Saisie!C28)","v":0},null,18.923999999999999,5,5,25,0,0,0,0,0,0,18.5,18.5,0]
["taux m.g.",{"$f":"Saisie!C23/1.03","v":0},null,32.488,10,10,40,0,0,0,0,0,0,37,37,0]
["kg gras/va",{"$f":"ROUND(B6/100*$B$5,0)","v":0},null,null,25,5,25,0,0,0,0,0,0,92.5,92.5,0]
["taux protéine vraie",{"$f":"Saisie!C24/1.03","v":0},null,69.048000000000002,30,30,100,0,0,0,0,0,0,111,111,0]
["protéine vraie /va",{"$f":"ROUND(B8/100*$B$5,0)","v":0},null,null,40,10,40,0,0,0,0,0,0,148,148,0]
["Pérvalence min",{"$f":"Saisie!C10","v":0},null,100,100,30,100,0,0,0,0,0,0,370,370,0]
[]
["Facteurs utilisés pour calcul des pertes",null,null,null,null,"prévalence min",null,"prévalence max"]
["facteur_lait",{"$f":"facteur_LAS","v":2.5000000000000001E-4},null,null,null,{"$f":"Saisie!C31","v":36},null,{"$f":"Saisie!C32","v":72},null,null,"listePrévalence"]
["facteur_gras",{"$f":"0.00115/5","v":2.3000000000000001E-4},null,null,null,"perte minimum",null,"perte maximum",null,null,0]
["facteur_protéine",{"$f":"B14","v":2.3000000000000001E-4},null,null,"pertes lait/va",{"$f":"VLOOKUP(F13,table_calcul,9)*nb_vaches","v":0},{"$f":"F15/nb_vaches","v":{"$error":"#DIV/0!"}},{"$f":"VLOOKUP(H13,table_calcul,9)*nb_vaches","v":0},null,null,5]
["facteur_LAS",{"$f":"0.00125/5","v":2.5000000000000001E-4},null,null,"pertes réforme",{"$f":"VLOOKUP(F13,table_calcul,10)*nb_vaches","v":0},null,{"$f":"VLOOKUP(H13,table_calcul,10)*nb_vaches","v":0},null,null,10]
["facteur_remplacement",3.7,null,null,"pertes totales",{"$f":"VLOOKUP(F13,table_calcul,12)","v":0},null,{"$f":"VLOOKUP(H13,table_calcul,12)","v":0},null,null,30]
[]
[]
["Note milk values used for example:"]
["These are 12 month averages back from 20201130"]
["v_fat_rate = ",10.814882000000001,null,null,null,null,null,"Economic loss fat = % loss fat for prevalence level * AVG_HERD_FAT_YR * v_fat_rate"]
["v_prot_rate =",7.8366363999999997,null,null,null,null,null,"Economic loss protein = % loss protein for prevalence level * AVG_HERD_PROT_YR * v_prot_rate"]
["v_osfactor_percentage = ",{"$f":"ROUND((IF(OR(Saisie!$C$15=\"\",Saisie!$C$15=0),Saisie!C25,5.89)-0.19)/1.03,2)","v":-0.18},null,null,null,null,null,"Economic loss LOS = % loss milk for prevalence level * AVG_HERD_MILK_YR * (v_osfactor_percentage /100) * v_other_rate"]
["v_other_rate = ",1.5872545]
["v_organic_bonus = ",20.720555000000001,"moyenne octobre 2020 à septembre 2021",null,null,null,null,"Economic loss Organic = % loss milk for prevalence level * AVG_HERD_MILK_YR * (v_organic_bonus /103.4)",null,null,null,null,null,null,null,null,null,null,"Note that this value is stored as the bonus per HL which must be converted to per kg by dividing by 103.4"]
["deduction = ",{"$f":"ROUND(((0.0362+0.1012+0.0008)*(4.2+3.26+5.9)+2.83)/103,4)","v":4.5400000000000003E-2},null,null,null,null,null,"Economic gain Deduction = % loss milk for prevalence level * AVG_HERD_MILK_YR * deduction "]
[]
[]
[]
[]
["Calculs version 2",null,"Tableau de calcul des pertes du troupeau"]
[null,null,"Fat","Protein","LOS","Organic","Deduction","Loss for Prod / Cow","Replacement cost per Cow","Total per Cow","Total Loss for Herd",null,"Fat","Protein","LOS","Organic","Deduction","Loss for Prod / Cow","Replacement cost per Cow","Total per Cow","Total Loss for Herd"]
["date test",{"$f":"Saisie!C7","v":"2021-12-17"}]
["nb de vaches",{"$f":"IF(OR(Saisie!C15=\"\",Saisie!C15=0),Saisie!C21,Saisie!C15)","v":0}]
["bio",{"$f":"Saisie!C8","v":"non"}]
["lait/va",{"$f":"IF(OR(Saisie!$C$15=\"\",Saisie!$C$15=0),Saisie!C22*1.03/B35,Saisie!C16)","v":{"$error":"#DIV/0!"}}]
["taux m.g.",{"$f":"IF(OR(Saisie!$C$15=\"\",Saisie!$C$15=0),Saisie!C23/1.03,Saisie!C17)","v":0}]
["gras/va",{"$f":"ROUND(B38/100*$B$37,2)","v":{"$error":"#DIV/0!"}}]
["taux protéine brute",{"$f":"IF(OR(Saisie!$C$15=\"\",Saisie!$C$15=0),Saisie!C24/1.03,Saisie!C18)","v":0}]
["protéine brute /va",{"$f":"ROUND(B40/100*$B$37,2)","v":{"$error":"#DIV/0!"}}]
["Pérvalence moy",{"$f":"Saisie!C10","v":0},{"$f":"ROUND(facteur_gras*B42,4)*gras_produit_2*prix_mg","v":{"$error":"#DIV/0!"}},{"$f":"ROUND(facteur_protéine*B42,4)*protéine_produite_2*prix_prot","v":{"$error":"#DIV/0!"}},{"$f":"ROUND(facteur_LAS*B42,4)*lait_produit_2*(taux_LAS/100)*prix_LAS","v":{"$error":"#DIV/0!"}},{"$f":"IF(OR(Bio_2=\"oui\",Bio_2=\"Yes\"),ROUND(facteur_lait*B42,4)*lait_produit_2*(prime_bio/103.4),0)","v":0},{"$f":"ROUND(-facteur_lait*B42,4)*lait_produit_2*deductions","v":{"$error":"#DIV/0!"}},{"$f":"C42+D42+E42+F42+G42","v":{"$error":"#DIV/0!"}},{"$f":"B42*facteur_remplacement","v":0},{"$f":"H42+I42","v":{"$error":"#DIV/0!"}},{"$f":"nb_vaches*J42","v":{"$error":"#DIV/0!"}},null,55.314168000000002,31.831667999999997,24.112363499999997,0,-6.1290000000000004,105.1291995,199.8,304.92919949999998,30492.91995]
["Pérvalence min",{"$f":"Saisie!C31","v":36},{"$f":"ROUND(facteur_gras*B43,4)*gras_produit_2*prix_mg","v":{"$error":"#DIV/0!"}},{"$f":"ROUND(facteur_protéine*B43,4)*protéine_produite_2*prix_prot","v":{"$error":"#DIV/0!"}},{"$f":"ROUND(facteur_LAS*B43,4)*Lait_produit*(taux_LAS/100)*prix_LAS","v":0},{"$f":"IF(OR(Bio_2=\"oui\",Bio_2=\"Yes\"),ROUND(facteur_lait*B43,4)*lait_produit_2*(prime_bio/103.4),0)","v":0},{"$f":"ROUND(-facteur_lait*B43,4)*lait_produit_2*deductions","v":{"$error":"#DIV/0!"}},{"$f":"C43+D43+E43+F43+G43","v":{"$error":"#DIV/0!"}},{"$f":"B43*facteur_remplacement","v":133.20000000000002},{"$error":"#DIV/0!"},{"$error":"#DIV/0!"}]
["Pérvalence max",{"$f":"Saisie!C32","v":72},{"$f":"ROUND(facteur_gras*B44,4)*gras_produit_2*prix_mg","v":{"$error":"#DIV/0!"}},{"$f":"ROUND(facteur_protéine*B44,4)*protéine_produite_2*prix_prot","v":{"$error":"#DIV/0!"}},{"$f":"ROUND(facteur_LAS*B44,4)*Lait_produit*(taux_LAS/100)*prix_LAS","v":0},{"$f":"IF(OR(Bio_2=\"oui\",Bio_2=\"Yes\"),ROUND(facteur_lait*B44,4)*lait_produit_2*(prime_bio/103.4),0)","v":0},{"$f":"ROUND(-facteur_lait*B44,4)*lait_produit_2*deductions","v":{"$error":"#DIV/0!"}},{"$error":"#DIV/0!"},{"$f":"B44*facteur_remplacement","v":266.40000000000003},{"$error":"#DIV/0!"},{"$error":"#DIV/0!"}]

{"sheet":"Table_étiquettes","index":2,"n_rows":36,"n_cols":6,"rows_kept":36,"cut":false,"hidden":true,"merged":[[5,5,5,7]]}
["Étiquettes"]
[null,null,null,"étiquette","Français","English"]
[null,null,"étiquette_1",{"$f":"IF(langue=$E$2,E3,F3)","v":"Choisir la langue/Select language"},"Choisir la langue/Select language","Choisir la langue/Select language"]
[null,null,"étiquette_2","Calcul de l'impact économique annuel de la leucose sur le troupeau","Calcul de l'impact économique annuel de la leucose sur le troupeau","Annual economic impact of leukosis in your herd"]
[null,null,"étiquette_3","Identification du troupeau:","Identification du troupeau:","Herd identification"]
[null,null,"étiquette_4","Date ","Date ","Date"]
[null,null,"étiquette_5","Nombre  de vaches du troupeau - moyenne 12 derniers mois  (1)","Nombre  de vaches du troupeau - moyenne 12 derniers mois  (1)","Average number of cows in your herd in the last 12 months(1)"]
[null,null,"étiquette_6","Production biologique certifiée","Production biologique certifiée","Certified organic milk production"]
[null,null,"étiquette_7","Performances des vaches du troupeau  (2):","Performances des vaches du troupeau  (2):","Herd performance (2):"]
[null,null,"étiquette_8","Production annuelle moyenne                                                 kg/va","Production annuelle moyenne                                                 kg/va","Annual milk production                      kg/cow"]
[null,null,"étiquette_9","Taux de matière grasse - moyenne 12 mois (3 )                      kg/hl","Taux de matière grasse - moyenne 12 mois (3 )                      kg/hl","Butterfat (3)                                                                       kg/hl"]
[null,null,"étiquette_10","Taux de protéine vraie - moyenne 12 mois (3)                         kg/hl   ","Taux de protéine vraie - moyenne 12 mois (3)                         kg/hl   ","True Protein (3)                                                                  kg/hl           "]
[null,null,"étiquette_11","Sélectionnez la prévalence estimée telle qu'indiquée sur votre rapport","Sélectionnez la prévalence estimée telle qu'indiquée sur votre rapport","Select the prevalence indicated for your herd"]
["si estimée > 55, alors vide",null,"étiquette_12","Sélectionnez la prévalence minimale estimée telle qu'indiquée sur votre rapport","Sélectionnez la prévalence minimale estimée telle qu'indiquée sur votre rapport","Select the minimum prevalence indicated for your herd"]
["si estimée > 55, alors vide",null,"étiquette_12.5","Sélectionnez la prévalence maximale estimée telle qu'indiquée sur votre rapport","Sélectionnez la prévalence maximale estimée telle qu'indiquée sur votre rapport","Maximum prevalence associated"]
[null,null,"étiquette_13","   Selon les informations fournies, vos pertes économiques se situent aux niveaux suivants:","   Selon les informations fournies, vos pertes économiques se situent aux niveaux suivants:","According to the information provided, your economic losses are at the following levels"]
[null,null,"étiquette_14","   Valeur des pertes de production de lait","   Valeur des pertes de production de lait"]
[null,null,"étiquette_15","   Coûts de la réforme supplémentaire pour le troupeau","   Coûts de la réforme supplémentaire pour le troupeau"]
[null,null,"étiquette_16","   Perte moyenne estimée pour le troupeau","   Perte moyenne estimée pour le troupeau","Total estimated losses"]
[null,null,"étiquette_16b",{"$f":"IF(langue=$E$2,E20,F20)","v":"   Perte minimale estimée "},"   Perte minimale estimée ","Total estimated losses"]
[null,null,"étiquette_16c","   Perte maximale estimée","   Perte maximale estimée","Total estimated losses"]
[null,null,"étiquette_17","(1)  Inclure les vaches taries pour avoir une estimation correcte des pertes sur une base annuelle","(1)  Inclure les vaches taries pour avoir une estimation correcte des pertes sur une base annuelle","(1) Include dry cows to have the correct estimated losses for one year"]
[null,null,"étiquette_18","(2)  L'étude sur laquelle s'appuient les calculs se réfère à la production moyenne des vaches calculée à 305 jours de lactation.  Le résultat du calcul des pertes sera légèrement différent si vous utilisez une moyenne annuelle.","(2)  L'étude sur laquelle s'appuient les calculs se réfère à la production moyenne des vaches calculée à 305 jours de lactation.  Le résultat du calcul des pertes sera légèrement différent si vous utilisez une moyenne annuelle.","(2) The study behind the calculation refers to the average 305-day production.  The calculation of the losses will be slightly different if you use the 12 month herd average production ."]
[null,null,"étiquette_19","(3) Ces taux sont exprimés en kg/hl tels qu'on les retrouvent sur la paie de lait","(3) Ces taux sont exprimés en kg/hl tels qu'on les retrouvent sur la paie de lait","(3) Butterfat and protein are measured in kg/hl as they appear on your milk payment slip"]
[null,null,"étiquette_20","oui","oui","Yes"]
[null,null,"étiquette_21","non","non","No"]
[null,null,"étiquette_22","Livraisons  de lait - total des 12 derniers mois                          litre","Livraisons  de lait - total des 12 derniers mois                          litre"," Total Milk Shipments (liter)"]
[null,null,"étiquette_23",{"$f":"IF(langue=$E$2,E28,F28)","v":"Taux de Lactose et autres solides - moyenne 12 mois (3)       kg/hl   "},"Taux de Lactose et autres solides - moyenne 12 mois (3)       kg/hl   ","Lactose and Other solids (3)                                                                  kg/hl           "]
[null,null,"étiquette_24",{"$f":"IF(langue=$E$2,E29,F29)","v":"Si vous êtes un utilisateur du contrôle laitier, complétez la section A sinon remplir la section B"},"Si vous êtes un utilisateur du contrôle laitier, complétez la section A sinon remplir la section B","If you are a DHI user, complete section A otherwise complete section B"]
[null,null,"étiquette_25","Taux de matière grasse - moyenne 12 mois (3 )                      %","Taux de matière grasse - moyenne 12 mois (3 )                      %","Butterfat (3)                                                                       %"]
[null,null,"étiquette_26","Taux de protéine - moyenne 12 mois (3)                         %","Taux de protéine - moyenne 12 mois (3)                         %","Protein (3)                                                                  %"]
[null,null,"étiquette_27","Nombre  de vaches du troupeau - logiciel de gestion du troupeau - moyenne 12 derniers mois(1)","Nombre  de vaches du troupeau - logiciel de gestion du troupeau - moyenne 12 derniers mois(1)","Average number of cows in your herd in the last 12 months - (1)"]
[null,null,"étiquette_28","A.  Données du  troupeau selon le rapport Production-Sommaire du troupeau de Lactanet","A.  Données du  troupeau selon le rapport Production-Sommaire du troupeau de Lactanet","A.  Herd information from Production-Herd Summary Lactanet"]
[null,null,"étiquette_29","B.  Données du troupeau compilées sur la ferme + livraisons tirées du si Extranet des PLQ","B.  Données du troupeau compilées sur la ferme + livraisons tirées du si Extranet des PLQ","B.  Données du troupeau compilées sur la ferme + livraisons tirées du si Extranet des PLQ"]
[null,null,"étiquette_30",0]
[null,null,"étiquette_31",0]

{"sheet":"Graphiques-articles","index":3,"n_rows":0,"n_cols":0,"rows_kept":0,"cut":false,"hidden":true,"merged":[]}